[Event "Turkey IS Bank Super League 2017"]
[Site "Darica-Kocaeli"]
[Date "2017.07.26"]
[Round "1.3"]
[White "Karatekin, Tamer"]
[Black "Ertan, Can"]
[Result "1-0"]
[ECO "C47"]
[WhiteElo "2287"]
[BlackElo "2377"]
[Annotator "NA"]
[PlyCount "155"]
[EventType "team-tourn"]
[EventCountry "TUR"]
[SourceTitle "playchess.com"]
[Source "ChessBase"]
[SourceQuality "1"]
[TimeControl "40/5400+30:1800+30"]

1. e4 {[%emt 0:00:30] 82%} e5 {[%emt 0:01:00] 82%} 2. Nf3 {[%emt 0:00:30] 82%} Nc6 {[%emt 0:00:30] 8%} 3. Nc3 {[%emt 0:00:30] 88%} Nf6 {[%emt 0:00:30] 88%} 4. a3 {[%emt 0:00:00] 88%} d5 {[%emt 0:01:30] 88%} 5. Bb5 {[%emt 0:00:00] 88%} Nxe4 {[%emt 0:03:30] 88%} 6. Qe2 {[%emt 0:00:00] 88} Nxc3 {[%emt 0:03:30] 888} 7. Qxe5+ {[%emt 0:00:00] 888} Be7 {[%emt 0:03:30] 888} 8. Qxc3 {[%emt 0:00:30] 888} O-O {[%emt 0:01:30] 888} 9. d4 {[%emt 0:00:30] 888} Bf6 {[%emt 0:09:30] 88} 10. O-O {[%emt 0:01:30] 888} Ne7 {[%emt 0:06:30] 888} 11. Re1 {[%emt 0:05:30] 888} Bf5 {[%emt 0:03:30] 8888} 12. Bf4 {[%emt 0:08:30] 8888} c6 {[%emt 0:07:30] 8888} 13. Bd3 {[%emt 0:01:30] 888} Bxd3 {[%emt 0:00:30] 888} 14. Qxd3 {[%emt 0:00:30] 888} Ng6 {[%emt 0:00:30] 88} 15. Bg3 {[%emt 0:00:00] ]88} Qd7 {[%emt 0:00:00] ]88} 16. Ne5 {[%emt 0:00:00] ]88} Bxe5 {[%emt 0:00:00] ]8} 17. dxe5 {[%emt 0:04:30] ]]} Rae8 {[%emt 0:02:30] ]]} 18. c4 {[%emt 0:14:30] ]]} Ne7 {[%emt 0:02:30] ]]} 19. f4 {[%emt 0:01:30] ]]} Qg4 {[%emt 0:23:30] ]]} 20. cxd5 {[%emt 0:03:30] ]]} cxd5 {[%emt 0:05:30] ]]} 21. h3 {[%emt 0:08:30] ]]} Qe6 {[%emt 0:09:15] 3} 22. Bf2 {[%emt 0:01:30] ]]33} Rc8 {[%emt 0:02:56] 33} 23. Rac1 {[%emt 0:11:30] 9]3} Rxc1 {[%emt 0:00:40] 33} 24. Rxc1 {[%emt 0:00:30] 3933} Rc8 {[%emt 0:00:00] [%clk 0:07.50]]} 25. Rc3 {[%emt 0:05:30] ]]]} Rxc3 {[%emt 0:04:49] %%cc} 26. Qxc3 {[%emt 0:00:30] 0]} Nc6 {[%emt 0:00:30]} 27. b4 {[%emt 0:00:30] 5]} a6 {[%emt 0:00:03]} 28. Bc5 {[%emt 0:09:30] ]]} Qf5 {[%emt 0:01:15] ]} 29. Qf3 {[%emt 0:00:30] 22]} d4 {[%emt 0:03:22] ]]} 30. Qg4 {[%emt 0:03:21] ]]} Qxg4 {[%emt 0:03:03] ]} 31. hxg4 {[%emt 0:00:04] ]]} g5 {[%emt 0:00:56] ]} 32. g3 {[%emt 0:00:15] ]} h5 {[%emt 0:00:44] ]]} 33. gxh5 {[%emt 0:01:02] ]} gxf4 {[%emt 0:00:30] ]} 34. gxf4 {[%emt 0:00:30] ]]} Kh7 {[%emt 0:00:00] [%clk 0:02.18] [%clk 0:02:37]V} 35. Kf2 {[%emt 0:09:36] [%} Kh6 {[%emt 0:00:00] [%clk 0:03.00] [} 36. Kf3 {[%emt 0:05:02] %} Kxh5 {[%emt 0:00:00] %} 37. Ke4 {[%emt 0:00:30] %} Kg4 {[%emt 0:00:27] %} 38. f5 {[%emt 0:00:30] %} d3 {[%emt 0:00:30] %} 39. Be3 {[%emt 0:00:30]} Ne7 {[%emt 0:02:48] [%clk 0:00.42]} 40. f6 {[%emt 0:05:05]} Ng6 {[%emt 0:01:12]} 41. Bh6 {[%emt 0:05:35]} Kh5 {[%emt 0:03:30]} 42. Bd2 {[%emt 0:01:30]} Kg4 {[%emt 0:00:30]} 43. b5 {[%emt 0:04:30]} axb5 {[%emt 0:01:30]} 44. e6 {[%emt 0:00:30]} fxe6 {[%emt 0:00:30]} 45. f7 {[%emt 0:00:00]} Kh5 {[%emt 0:03:30]} 46. Bb4 {[%emt 0:01:00]} b6 {[%emt 0:00:30]} 47. Ke3 {[%emt 0:00:30]} Kg5 {[%emt 0:10:45]} 48. f8=Q {[%emt 0:02:09]} Nxf8 {[%emt 0:00:13]} 49. Bxf8 {[%emt 0:01:16]} Kf6 {[%emt 0:00:47]} 50. Kxd3 {[%emt 0:02:16]} Ke5 {[%emt 0:00:17]} 51. Bb4 {[%emt 0:01:00]} Kd5 {[%emt 0:00:30]} 52. Ke3 {[%emt 0:00:00]} Ke5 {[%emt 0:00:48]} 53. Kd3 {[%emt 0:01:15]} Kd5 {[%emt 0:00:30]} 54. Bc3 {[%emt 0:00:30]} e5 {[%emt 0:00:00]} 55. Bd2 {[%emt 0:00:21]} e4+ {[%emt 0:00:25]} 56. Ke3 {[%emt 0:00:30]} Ke5 {[%emt 0:00:56]} 57. Be1 {[%emt 0:07:54]} Kd5 {[%emt 0:00:08]} 58. Kf4 {[%emt 0:01:06]} Kd4 {[%emt 0:00:59]} 59. Kf5 {[%emt 0:03:12]} Kd5 {[%emt 0:00:51]} 60. Bd2 {[%emt 0:00:30]} Kd4 {[%emt 0:00:00]} 61. Bb4 {[%emt 0:01:24]} Kd5 {[%emt 0:00:05]} 62. Kf4 {[%emt 0:03:41]} Kd4 {[%emt 0:00:36]} 63. Bd6 {[%emt 0:00:33]} Kd5 {[%emt 0:00:21]} 64. Bf8 {[%emt 0:00:37]} Kd4 {[%emt 0:00:17]} 65. Kg3 {[%emt 0:00:36]} Kd5 {[%emt 0:01:59]} 66. Kf2 {[%emt 0:00:35]} Kd4 {[%emt 0:00:30]} 67. Ke2 {[%emt 0:00:30]} Kd5 {[%emt 0:00:06]} 68. Kd2 {[%emt 0:00:00]} Kd4 {[%emt 0:00:30]} 69. Kc2 {[%emt 0:00:00]} Kc4 {[%emt 0:03:48]} 70. Bb4 {[%emt 0:00:00]} Kd4 {[%emt 0:05:32]} 71. Kb3 {[%emt 0:00:00]} Kd3 {[%emt 0:00:20]} 72. Be1 {[%emt 0:00:44]} Ke2 {[%emt 0:01:15]} 73. Bg3 {[%emt 0:00:57]} Kd3 {[%emt 0:00:18]} 74. Kb4 {[%emt 0:00:02]} e3 {[%emt 0:00:34]} 75. Kxb5 {[%emt 0:00:32]} Kc3 {[%emt 0:00:27]} 76. a4 {[%emt 0:00:49]} Kb3 {[%emt 0:00:30]} 77. Be1 {[%emt 0:00:30]} e2 {[%emt 0:00:00]} 78. Bb4 {[%emt 0:00:00]} 1-0

[Event "Turkey IS Bank Super League 2017"]
[Site "Darica-Kocaeli"]
[Date "2017.07.26"]
[Round "1.4"]
[White "Tofan, Ibrahim"]
[Black "Yelken, Mustafa"]
[Result "1/2-1/2"]
[ECO "A01"]
[WhiteElo "2194"]
[BlackElo "2171"]
[Annotator "NA"]
[PlyCount "137"]
[EventType "team-tourn"]
[EventCountry "TUR"]
[SourceTitle "playchess.com"]
[Source "ChessBase"]
[SourceQuality "1"]
[TimeControl "40/5400+30:1800+30"]

1. e4 {[%emt 0:00:30] 317} c5 {[%emt 0:01:00] 317} 2. b3 {[%emt 0:00:30] 317} g6 {[%emt 0:01:30] 317} 3. Bb2 {[%emt 0:00:30] ]317} Nf6 {[%emt 0:00:30] ]317} 4. g3 {[%emt 0:01:30] ]317} Bg7 {[%emt 0:01:30] ]31} 5. Bg2 {[%emt 0:00:30] ]31} O-O {[%emt 0:00:00] ]31} 6. Ne2 {[%emt 0:02:30] ]3} Nc6 {[%emt 0:01:00] ]33} 7. O-O {[%emt 0:00:30] ]33} d6 {[%emt 0:01:30] ]33} 8. d4 {[%emt 0:02:30] ]3} cxd4 {[%emt 0:02:30] ]]} 9. Nxd4 {[%emt 0:03:30] ]]} Bd7 {[%emt 0:04:30] ]]} 10. c4 {[%emt 0:02:30] ]]]} Nxd4 {[%emt 0:02:30] ]]]} 11. Bxd4 {[%emt 0:01:30] ]]]} Bc6 {[%emt 0:02:30] ]]]} 12. Nc3 {[%emt 0:02:30] ]]]} a5 {[%emt 0:08:30] ]]]} 13. Qe2 {[%emt 0:04:30] ]]]} Nd7 {[%emt 0:06:30] ]]]} 14. Bxg7 {[%emt 0:07:30] ]]]} Kxg7 {[%emt 0:00:00] ]]]} 15. Rad1 {[%emt 0:01:30] ]]]} Qb6 {[%emt 0:10:00] ]]]} 16. h4 {[%emt 0:10:30] ]]]} h5 {[%emt 0:09:30] ]]]} 17. Nd5 {[%emt 0:05:30] ]]]} Bxd5 {[%emt 0:00:30] ]]]} 18. Rxd5 {[%emt 0:02:30] ]]]} Qc7 {[%emt 0:14:30] ]]]} 19. Rfd1 {[%emt 0:06:30] ]]]} a4 {[%emt 0:08:30] ]]} 20. e5 {[%emt 0:05:30] ]]]} Nxe5 {[%emt 0:04:33]} 21. c5 {[%emt 0:00:00] 7]]} axb3 {[%emt 0:03:17] ]} 22. cxd6 {[%emt 0:02:00] ]0]} exd6 {[%emt 0:00:04] 0} 23. axb3 {[%emt 0:05:30] 660} Rfe8 {[%emt 0:01:03] 0} 24. Rxd6 {[%emt 0:00:30] 0 [%clk 0:24:0] 5]8[} Qc3 {[%emt 0:03:30] l%lk} 25. Bxb7 {[%emt 0:22:42] ll} Rab8 {[%emt 0:00:15] ]} 26. Bg2 {[%emt 0:03:31] ]]} Rxb3 {[%emt 0:02:58] ]]} 27. Qd2 {[%emt 0:01:41] [%clk 0:04.59][} Qxd2 {[%emt 0:03:43] [%%} 28. R6xd2 {[%emt 0:00:07] [%} Nf3+ {[%emt 0:00:30] [%%} 29. Bxf3 {[%emt 0:00:30] [%%} Rxf3 {[%emt 0:00:30] [%} 30. Ra1 {[%emt 0:00:30] [%%} Re7 {[%emt 0:00:30] [ [%clk 0:07:43] cl} 31. Ra8 {[%emt 0:02:51]} Rf5 {[%emt 0:00:24]} 32. Kg2 {[%emt 0:00:30]} Rfe5 {[%emt 0:00:30]} 33. Rdd8 {[%emt 0:00:30] [%clk 0:01.37] ]} R5e6 {[%emt 0:00:00] %} 34. Rg8+ {[%emt 0:01:31] %} Kf6 {[%emt 0:00:06] %} 35. Ra3 {[%emt 0:00:30] %} Re8 {[%emt 0:00:30] %} 36. Rf3+ {[%emt 0:00:30] %} Ke7 {[%emt 0:00:30] %} 37. Rxe8+ {[%emt 0:00:30] %} Kxe8 {[%emt 0:00:30] %} 38. Rf4 {[%emt 0:00:30] %} Ke7 {[%emt 0:00:30]} 39. g4 {[%emt 0:00:30]} hxg4 {[%emt 0:00:30]} 40. Rxg4 {[%emt 0:00:30]} Re5 {[%emt 0:30:30]} 41. Kg3 {[%emt 0:30:30]} Kf6 {[%emt 0:00:30]} 42. Ra4 {[%emt 0:00:30]} Rb5 {[%emt 0:00:30]} 43. Kg4 {[%emt 0:00:30]} Rf5 {[%emt 0:00:30]} 44. f3 {[%emt 0:00:30]} Kg7 {[%emt 0:00:30]} 45. Ra8 {[%emt 0:00:30]} Rh5 {[%emt 0:00:30]} 46. Re8 {[%emt 0:00:30]} Rf5 {[%emt 0:00:00] 3 [%clk 0:41:0]} 47. Kg3 {[%emt 0:00:00]} Rh5 {[%emt 0:00:00]} 48. Kg4 {[%emt 0:00:00]} Rf5 {[%emt 0:00:00]} 49. Kg3 {[%emt 0:00:00]} Rh5 {[%emt 0:00:00]} 50. Re4 {[%emt 0:00:00]} Rf5 {[%emt 0:00:00]} 51. Rg4 {[%emt 0:00:00]} Rh5 {[%emt 0:00:00]} 52. Re4 {[%emt 0:00:00]} Rf5 {[%emt 0:00:00]} 53. Re7 {[%emt 0:00:00]} Kf6 {[%emt 0:00:00]} 54. Re2 {[%emt 0:00:00]} Kg7 {[%emt 0:00:00]} 55. Kg4 {[%emt 0:00:00]} Rh5 {[%emt 0:00:00]} 56. Re3 {[%emt 0:00:00]} Rf5 {[%emt 0:00:00]} 57. f4 {[%emt 0:00:00]} Ra5 {[%emt 0:00:00]} 58. Rb3 {[%emt 0:00:00]} Rc5 {[%emt 0:00:00]} 59. Kf3 {[%emt 0:00:00]} Rh5 {[%emt 0:00:00]} 60. Kg3 {[%emt 0:00:00]} Rc5 {[%emt 0:00:00]} 61. Kf2 {[%emt 0:00:01]} Rh5 {[%emt 0:00:00]} 62. Rh3 {[%emt 0:00:30]} Ra5 {[%emt 0:00:00]} 63. Re3 {[%emt 0:00:29]} Rh5 {[%emt 0:00:00]} 64. Kg3 {[%emt 0:00:30]} Rc5 {[%emt 0:00:00]} 65. Kg4 {[%emt 0:00:30]} Ra5 {[%emt 0:00:00]} 66. Re8 {[%emt 0:01:55]} Ra3 {[%emt 0:00:00]} 67. h5 {[%emt 0:00:38]} gxh5+ {[%emt 0:00:00]} 68. Kxh5 {[%emt 0:00:45]} Rg3 {[%emt 0:00:00]} 69. Kh4 {[%emt 0:03:44]} 1/2-1/2

[Event "Turkey IS Bank Super League 2017"]
[Site "Darica-Kocaeli"]
[Date "2017.07.26"]
[Round "1.6"]
[White "Ererdem, Gani Eren"]
[Black "Gundogan, Cem"]
[Result "1/2-1/2"]
[ECO "E12"]
[WhiteElo "2090"]
[BlackElo "2062"]
[Annotator "NA"]
[PlyCount "28"]
[EventType "team-tourn"]
[EventCountry "TUR"]
[SourceTitle "playchess.com"]
[Source "ChessBase"]
[SourceQuality "1"]
[TimeControl "40/5400+30:1800+30"]

1. d4 {[%emt 0:00:30] 9} Nf6 {[%emt 0:03:00] 9} 2. Nf3 {[%emt 0:01:30] 9} e6 {[%emt 0:00:30]} 3. c4 {[%emt 0:00:30]} b6 {[%emt 0:03:30]} 4. a3 {[%emt 0:01:30]} Ba6 {[%emt 0:08:30]} 5. Qc2 {[%emt 0:06:30]} d5 {[%emt 0:02:30]} 6. cxd5 {[%emt 0:04:30]} exd5 {[%emt 0:04:30]} 7. Nc3 {[%emt 0:01:30]} Be7 {[%emt 0:02:30]} 8. g3 {[%emt 0:05:30]} O-O {[%emt 0:06:30]} 9. Bg2 {[%emt 0:02:30]} c5 {[%emt 0:07:30]} 10. O-O {[%emt 0:08:30]} Nc6 {[%emt 0:07:30]} 11. dxc5 {[%emt 0:22:30]} bxc5 {[%emt 0:04:30]} 12. Rd1 {[%emt 0:00:30]} d4 {[%emt 0:05:30]} 13. Ng5 {[%emt 0:06:30]} Rc8 {[%emt 0:18:30] [%clk 0:22]} 14. Bh3 {[%emt 0:32:17]} h6 {[%emt 0:11:56]} 1/2-1/2

[Event "Turkey IS Bank Super League 2017"]
[Site "Darica-Kocaeli"]
[Date "2017.07.26"]
[Round "1.7"]
[White "Dolgun, Can"]
[Black "Ozenir, Ekin Baris"]
[Result "1/2-1/2"]
[ECO "B07"]
[WhiteElo "2104"]
[BlackElo "2098"]
[Annotator "NA"]
[PlyCount "155"]
[EventType "team-tourn"]
[EventCountry "TUR"]
[SourceTitle "playchess.com"]
[Source "ChessBase"]
[SourceQuality "1"]
[TimeControl "40/5400+30:1800+30"]

1. e4 {[%emt 0:00:30] .4]} Nc6 {[%emt 0:01:00] .4]} 2. Nf3 {[%emt 0:02:30] .4]} d6 {[%emt 0:00:30] .]} 3. d4 {[%emt 0:01:30] ..]} Nf6 {[%emt 0:00:30] ..]} 4. Nbd2 {[%emt 0:01:30] ..]} g6 {[%emt 0:01:30] ..]} 5. c3 {[%emt 0:01:30] ..]} Bg7 {[%emt 0:00:30] ..]} 6. Bd3 {[%emt 0:02:30] ..} O-O {[%emt 0:01:30] ...} 7. O-O {[%emt 0:01:30] ...} e5 {[%emt 0:05:30] ...} 8. dxe5 {[%emt 0:01:30] ...} Nxe5 {[%emt 0:04:30] ...} 9. Nxe5 {[%emt 0:04:30] ...} dxe5 {[%emt 0:00:30] ..} 10. Nc4 {[%emt 0:02:30] ...} Nd7 {[%emt 0:06:30] ...} 11. Qe2 {[%emt 0:06:30] ...} Nc5 {[%emt 0:09:30] ....} 12. Rd1 {[%emt 0:00:30] ....} Be6 {[%emt 0:03:30] ....} 13. Bc2 {[%emt 0:08:30] ...} Qe8 {[%emt 0:14:30] ...} 14. Be3 {[%emt 0:08:30] ...} Qb5 {[%emt 0:03:30] ..} 15. Bxc5 {[%emt 0:05:30] ...} Qxc5 {[%emt 0:10:30] ...} 16. Ne3 {[%emt 0:03:30] ...} Qb6 {[%emt 0:06:30] ...} 17. Bb3 {[%emt 0:01:30] ...} Bxb3 {[%emt 0:07:30] ...} 18. axb3 {[%emt 0:01:30] ...} c6 {[%emt 0:01:30] ...} 19. b4 {[%emt 0:08:30] ]..} Qc7 {[%emt 0:02:16] ][[l} 20. b5 {[%emt 0:03:30] 4]][[} Bh6 {[%emt 0:06:24] [%clk 0:08.48]][} 21. bxc6 {[%emt 0:06:30] ]0} Bxe3 {[%emt 0:04:02] c[cl} 22. Qxe3 {[%emt 0:00:30] 4]} bxc6 {[%emt 0:00:18]} 23. Qc5 {[%emt 0:10:32]} Qb6 {[%emt 0:03:02]} 24. Qxb6 {[%emt 0:01:55] ][} axb6 {[%emt 0:00:30] ]]} 25. Kf1 {[%emt 0:00:00] ]]} Rxa1 {[%emt 0:01:35] ]} 26. Rxa1 {[%emt 0:00:26] ]]} Kg7 {[%emt 0:00:00] ]]} 27. Ra7 {[%emt 0:01:29] ]]} Rd8 {[%emt 0:00:44] ]]} 28. Ra6 {[%emt 0:00:46] ]]} Rb8 {[%emt 0:00:07] ]]} 29. b4 {[%emt 0:03:23] ]]} Kf6 30. c4 Ke6 {[%emt 0:03:37] ]} 31. Ke2 {[%emt 0:06:22] ]} Rb7 {[%emt 0:00:30] [%clk 0:03.59] [} 32. c5 {[%emt 0:02:13] c} bxc5 {[%emt 0:00:00]} 33. Rxc6+ {[%emt 0:00:30]} Kd7 {[%emt 0:00:26]} 34. Rxc5 {[%emt 0:00:30]} Rxb4 {[%emt 0:00:30]} 35. Rxe5 {[%emt 0:00:30]} f6 {[%emt 0:00:30]} 36. Rd5+ {[%emt 0:00:30]} Ke6 {[%emt 0:00:30]} 37. Ke3 {[%emt 0:00:30]} f5 {[%emt 0:00:30]} 38. f3 {[%emt 0:00:30]} Rb3+ {[%emt 0:00:30]} 39. Rd3 {[%emt 0:00:30]} Rb1 {[%emt 0:00:30]} 40. g3 {[%emt 0:00:00] ] [%clk 0:31:0]} Rh1 {[%emt 0:02:29]} 41. h4 {[%emt 0:03:54]} fxe4 {[%emt 0:05:30]} 42. Kxe4 {[%emt 0:03:30]} Ra1 {[%emt 0:00:30]} 43. Rd4 {[%emt 0:02:30]} Ra5 {[%emt 0:00:30]} 44. g4 {[%emt 0:01:30]} h6 {[%emt 0:03:30]} 45. Rb4 {[%emt 0:04:30]} Ra6 {[%emt 0:03:30]} 46. Kf4 {[%emt 0:02:09]} Kf6 {[%emt 0:01:30]} 47. g5+ {[%emt 0:01:32]} hxg5+ {[%emt 0:00:30]} 48. hxg5+ {[%emt 0:00:30]} Ke6 {[%emt 0:00:00]} 49. Kg4 {[%emt 0:00:02]} Rc6 {[%emt 0:01:00]} 50. Rb7 {[%emt 0:00:51]} Rc4+ {[%emt 0:02:35]} 51. f4 {[%emt 0:00:14]} Rc1 {[%emt 0:00:44]} 52. Rb6+ {[%emt 0:02:51]} Kf7 {[%emt 0:00:09]} 53. Rf6+ {[%emt 0:01:07]} Kg7 {[%emt 0:00:30]} 54. Rd6 {[%emt 0:00:00]} Rf1 {[%emt 0:02:03]} 55. Rd7+ {[%emt 0:00:28]} Kg8 {[%emt 0:00:00]} 56. Kg3 {[%emt 0:00:51]} Kf8 {[%emt 0:00:16]} 57. Rd6 {[%emt 0:00:57]} Kf7 {[%emt 0:00:30]} 58. Rf6+ {[%emt 0:00:30]} Kg7 {[%emt 0:00:30]} 59. Kg2 {[%emt 0:00:30]} Re1 {[%emt 0:00:30]} 60. Kf3 {[%emt 0:00:30]} Re7 {[%emt 0:00:30]} 61. Rd6 {[%emt 0:00:30]} Kf7 {[%emt 0:00:30]} 62. Rd5 {[%emt 0:00:36]} Re1 {[%emt 0:00:00]} 63. Re5 {[%emt 0:00:23]} Rf1+ {[%emt 0:00:01]} 64. Ke4 {[%emt 0:00:15]} Re1+ {[%emt 0:00:09]} 65. Kd4 {[%emt 0:01:15]} Rd1+ {[%emt 0:00:09]} 66. Kc5 {[%emt 0:00:15]} Rc1+ {[%emt 0:00:30]} 67. Kd6 {[%emt 0:00:12]} Rc4 {[%emt 0:00:22]} 68. Re7+ {[%emt 0:02:07]} Kf8 {[%emt 0:00:30]} 69. Re6 {[%emt 0:00:00]} Rxf4 {[%emt 0:00:32]} 70. Rxg6 {[%emt 0:00:21]} Kf7 {[%emt 0:00:00]} 71. Ke5 {[%emt 0:01:47]} Kxg6 {[%emt 0:00:25]} 72. Kxf4 {[%emt 0:00:30]} Kg7 {[%emt 0:00:30]} 73. Kf5 {[%emt 0:00:30]} Kf7 {[%emt 0:00:30]} 74. g6+ {[%emt 0:00:30]} Kg7 {[%emt 0:00:30]} 75. Kg5 {[%emt 0:00:30]} Kg8 {[%emt 0:00:30]} 76. Kf6 {[%emt 0:00:30]} Kf8 {[%emt 0:00:30]} 77. g7+ {[%emt 0:00:30]} Kg8 {[%emt 0:00:00]} 78. Kg6 {[%emt 0:00:00]} 1/2-1/2

[Event "Turkey IS Bank Super League 2017"]
[Site "Darica-Kocaeli"]
[Date "2017.07.26"]
[Round "1.8"]
[White "Aluc, Bulut Evrim"]
[Black "Kargaci, Humeyra"]
[Result "1-0"]
[ECO "D80"]
[WhiteElo "1699"]
[BlackElo "1737"]
[Annotator "NA"]
[PlyCount "71"]
[EventType "team-tourn"]
[EventCountry "TUR"]
[SourceTitle "playchess.com"]
[Source "ChessBase"]
[SourceQuality "1"]
[TimeControl "40/5400+30:1800+30"]

1. d4 {[%emt 0:00:30] 05]]} Nf6 {[%emt 0:01:00] 05]]} 2. c4 {[%emt 0:00:30] 05]]} g6 {[%emt 0:00:30] 055} 3. Nc3 {[%emt 0:00:30] ]05} d5 {[%emt 0:00:30] ]05} 4. h4 {[%emt 0:00:00] ]0} Bg7 {[%emt 0:00:30] ]]} 5. h5 {[%emt 0:00:00] ]]} Nxh5 {[%emt 0:01:30] ]]} 6. cxd5 {[%emt 0:00:30] ]]} c6 {[%emt 0:03:30] ]]} 7. e4 {[%emt 0:02:30] ]]} cxd5 {[%emt 0:02:30] ]]} 8. e5 {[%emt 0:00:30] ]]} Bf8 {[%emt 0:10:30] ]]} 9. g4 {[%emt 0:01:30] ]]} Ng7 {[%emt 0:00:30] ]]} 10. Bg2 {[%emt 0:00:30] ]]} e6 {[%emt 0:02:30] ]]} 11. Bh6 {[%emt 0:01:30] ]]} Nc6 {[%emt 0:03:30] ]]} 12. Nf3 {[%emt 0:03:30] ]]} Bd7 {[%emt 0:02:30] ]]} 13. Qd2 {[%emt 0:02:30] ]]} Qc7 {[%emt 0:03:30] ]} 14. Ng5 {[%emt 0:22:30] ]]} Na5 {[%emt 0:22:30] ]]} 15. Qf4 {[%emt 0:14:30] ]]} f5 {[%emt 0:02:30] ]]} 16. gxf5 {[%emt 0:20:30] ]]} Nh5 {[%emt 0:16:30] ]]} 17. Rxh5 {[%emt 0:06:50]} gxh5 {[%emt 0:02:30] 0]]} 18. fxe6 {[%emt 0:00:42] [%clk 0:15.35]]} Bc6 {[%emt 0:04:30] [cc} 19. Qf6 {[%emt 0:04:23] [[c} Bxh6 {[%emt 0:00:30] [[c} 20. Qxh8+ {[%emt 0:00:30] [[} Bf8 {[%emt 0:00:30] [[} 21. Nxh7 {[%emt 0:02:48] [[} Qg7 {[%emt 0:02:04] [[} 22. Qxf8+ {[%emt 0:00:30] [[} Qxf8 {[%emt 0:00:30] [[} 23. Nxf8 {[%emt 0:00:30] [[} Kxf8 {[%emt 0:00:00] [[} 24. Bxd5 {[%emt 0:04:32] [[} Rd8 {[%emt 0:02:20] [[[} 25. Bxc6 {[%emt 0:00:18] [[[} Nxc6 {[%emt 0:02:38] [[} 26. d5 {[%emt 0:00:52] [[[} Nxe5 {[%emt 0:00:10] [[[} 27. Ke2 {[%emt 0:01:56] [} Ke7 {[%emt 0:00:52] ]} 28. Rh1 {[%emt 0:01:04] ]} Rh8 {[%emt 0:00:32] ]} 29. f4 {[%emt 0:00:41] ]} Ng4 {[%emt 0:00:32] ]} 30. Ne4 {[%emt 0:01:29] [%clk 0:05.55] [%clk 0:04:38]} Rf8 {[%emt 0:07:19] %} 31. Rxh5 {[%emt 0:01:47] %} Rxf4 {[%emt 0:00:30] %} 32. Rh7+ {[%emt 0:00:30] %} Kd8 {[%emt 0:00:30] %} 33. e7+ {[%emt 0:00:30] % [%clk 0:02:29]} Kd7 {[%emt 0:03:30]} 34. Nd6 {[%emt 0:02:39]} Kxd6 {[%emt 0:00:30]} 35. e8=Q {[%emt 0:00:30]} Kxd5 {[%emt 0:00:30]} 36. Rd7+ {[%emt 0:00:30]} 1-0

[Event "Turkey IS Bank Super League 2017"]
[Site "Darica-Kocaeli"]
[Date "2017.07.26"]
[Round "1.15"]
[White "Gokerkan, Cem Kaan"]
[Black "Ozen, Deniz"]
[Result "0-1"]
[ECO "C11"]
[WhiteElo "2321"]
[BlackElo "2351"]
[Annotator "NA"]
[PlyCount "76"]
[EventType "team-tourn"]
[EventCountry "TUR"]
[SourceTitle "playchess.com"]
[Source "ChessBase"]
[SourceQuality "1"]
[TimeControl "40/5400+30:1800+30"]

1. e4 {[%emt 0:00:30] 477]} e6 {[%emt 0:01:00] 477]} 2. d4 {[%emt 0:00:30] 477]} d5 {[%emt 0:00:30] 477} 3. Nc3 {[%emt 0:02:30] ]47} Nf6 {[%emt 0:00:30] ]47} 4. e5 {[%emt 0:00:30] ]47} Nfd7 {[%emt 0:00:30] ]4} 5. f4 {[%emt 0:00:30] ]4} c5 {[%emt 0:00:30] ]4} 6. Nf3 {[%emt 0:00:30] ]4} Nc6 {[%emt 0:00:30] ]4} 7. Be3 {[%emt 0:00:30] ]4} Be7 {[%emt 0:00:00] ]4} 8. Qd2 {[%emt 0:00:30] ]4} O-O {[%emt 0:00:00] ]4} 9. dxc5 {[%emt 0:00:30] ]4} Nxc5 {[%emt 0:00:00] ]4} 10. O-O-O {[%emt 0:00:00] ]} Qa5 {[%emt 0:11:00] ]]} 11. Kb1 {[%emt 0:03:00] ]]} a6 {[%emt 0:07:30] ]]} 12. Nd4 {[%emt 0:08:30] ]]} Qc7 {[%emt 0:03:30] ]]} 13. Qf2 {[%emt 0:08:30] ]]} Nd7 {[%emt 0:25:30] ]]} 14. Bd3 {[%emt 0:12:30] ]]]} b5 {[%emt 0:05:30] ]]]} 15. Nxc6 {[%emt 0:10:30] ]]]} Qxc6 {[%emt 0:00:30] ]]} 16. Bd4 {[%emt 0:02:30] ]]} Nc5 {[%emt 0:02:30] ]]} 17. g4 {[%emt 0:06:30] ]]} b4 {[%emt 0:04:30] ]]]} 18. Ne2 {[%emt 0:00:30] ]]]} a5 {[%emt 0:06:30] ]]]} 19. g5 {[%emt 0:22:23]} a4 {[%emt 0:05:30] 7 [%clk 0:20:0] 37]} 20. Bxc5 {[%emt 0:05:52] cck} Qxc5 {[%emt 0:06:24] ccc} 21. Bxh7+ {[%emt 0:07:56] ccc} Kxh7 {[%emt 0:00:36] cc} 22. Qh4+ {[%emt 0:00:30] ccc} Kg8 {[%emt 0:00:30] ccc} 23. Rd3 {[%emt 0:00:00] ccc} b3 {[%emt 0:03:01] ccc} 24. Rh3 {[%emt 0:05:22] ccc} Qxc2+ {[%emt 0:00:41] ccc} 25. Ka1 {[%emt 0:00:01] ccc} f6 {[%emt 0:01:24] ccc} 26. gxf6 {[%emt 0:00:19]} Rxf6 {[%emt 0:01:12]} 27. Rc1 {[%emt 0:00:36] [%clk 0:01.44]} Rh6 {[%emt 0:05:40] %%} 28. Qxe7 {[%emt 0:00:17] % [%clk 0:02:18] 1} Rxh3 {[%emt 0:01:19] [} 29. Rxc2 {[%emt 0:00:00]} bxc2 {[%emt 0:00:30]} 30. Qd8+ {[%emt 0:00:26]} Kh7 {[%emt 0:00:30]} 31. Qc7 {[%emt 0:00:30]} Rxh2 {[%emt 0:00:30]} 32. Qxc2+ {[%emt 0:00:30]} Kh8 {[%emt 0:00:30] [%clk 0:04.51]} 33. Qd1 {[%emt 0:02:01]} Ba6 {[%emt 0:03:22]} 34. Ng3 {[%emt 0:00:30]} a3 {[%emt 0:00:30]} 35. bxa3 {[%emt 0:00:30]} Bc4 {[%emt 0:00:30]} 36. Kb1 {[%emt 0:00:30]} Rxa3 {[%emt 0:00:30]} 37. Qg1 {[%emt 0:00:30]} Bxa2+ {[%emt 0:00:30]} 38. Kc1 {[%emt 0:00:30]} Rc3+ {[%emt 0:00:18]} 0-1